[Event "*** Titled Tuesday Blitz"]
[Site "Chess.com"]
[Date "2020.10.20"]
[Round "7"]
[White "LyonBeast"]
[Black "Oleksandr_Bortnyk"]
[Result "1-0"]
[WhiteElo "3040"]
[BlackElo "2889"]
[TimeControl "180+1"]
[EndTime "11:19:38 PDT"]
[Termination "LyonBeast won on time"]

1. Nf3 {[%clk 0:03:00.9]} 1... Nf6 {[%clk 0:02:59.1]} 2. c4 {[%clk 0:02:58.7]}
2... b6 {[%clk 0:02:59.1]} 3. b3 {[%clk 0:02:57.4]} 3... Bb7 {[%clk 0:03:00]} 4.
Bb2 {[%clk 0:02:57.7]} 4... g6 {[%clk 0:03:00.3]} 5. g3 {[%clk 0:02:57]} 5...
Bg7 {[%clk 0:03:00.9]} 6. Bg2 {[%clk 0:02:57.3]} 6... O-O {[%clk 0:03:01.4]} 7.
O-O {[%clk 0:02:57.6]} 7... e6 {[%clk 0:02:55.7]} 8. d4 {[%clk 0:02:57.1]} 8...
d5 {[%clk 0:02:56.1]} 9. e3 {[%clk 0:02:55.2]} 9... Nbd7 {[%clk 0:02:54.4]} 10.
Nc3 {[%clk 0:02:49]} 10... a6 {[%clk 0:02:50.1]} 11. Rc1 {[%clk 0:02:45.3]}
11... Re8 {[%clk 0:02:50.1]} 12. Qe2 {[%clk 0:02:41.7]} 12... Qe7 {[%clk
0:02:35.9]} 13. Rfd1 {[%clk 0:02:38.6]} 13... Rac8 {[%clk 0:02:22.3]} 14. Ne5
{[%clk 0:02:31.5]} 14... h5 {[%clk 0:02:09.9]} 15. h3 {[%clk 0:02:25.6]} 15...
c6 {[%clk 0:01:54.6]} 16. Nd3 {[%clk 0:02:16.1]} 16... b5 {[%clk 0:01:50]} 17.
c5 {[%clk 0:02:09.2]} 17... a5 {[%clk 0:01:46.2]} 18. a3 {[%clk 0:02:06.8]}
18... Nh7 {[%clk 0:01:27.1]} 19. f4 {[%clk 0:02:06.6]} 19... f5 {[%clk 0:01:21]}
20. Ne5 {[%clk 0:01:54.5]} 20... Nxe5 {[%clk 0:01:09.6]} 21. dxe5 {[%clk
0:01:51.7]} 21... Nf8 {[%clk 0:01:03.4]} 22. b4 {[%clk 0:01:51.2]} 22... Ra8
{[%clk 0:01:02.4]} 23. Qf3 {[%clk 0:01:41.5]} 23... Nd7 {[%clk 0:01:00.8]} 24.
Ne2 {[%clk 0:01:41.1]} 24... axb4 {[%clk 0:00:59.9]} 25. axb4 {[%clk 0:01:42]}
25... Ra2 {[%clk 0:01:00.2]} 26. Bc3 {[%clk 0:01:41.9]} 26... Rea8 {[%clk
0:00:59.7]} 27. Ra1 {[%clk 0:01:38.2]} 27... Qd8 {[%clk 0:00:52.2]} 28. Nd4
{[%clk 0:01:35.6]} 28... Kf7 {[%clk 0:00:51.4]} 29. Qf1 {[%clk 0:01:27.3]} 29...
R8a3 {[%clk 0:00:48.2]} 30. Rxa2 {[%clk 0:01:26]} 30... Rxa2 {[%clk 0:00:49.1]}
31. Ra1 {[%clk 0:01:26.1]} 31... Qa8 {[%clk 0:00:49.4]} 32. Rxa2 {[%clk
0:01:24.1]} 32... Qxa2 {[%clk 0:00:50.3]} 33. Qa1 {[%clk 0:01:24.1]} 33... Qxa1+
{[%clk 0:00:47.7]} 34. Bxa1 {[%clk 0:01:25]} 34... g5 {[%clk 0:00:22.5]} 35. Bf3
{[%clk 0:01:19.2]} 35... g4 {[%clk 0:00:22.4]} 36. Be2 {[%clk 0:01:19.1]} 36...
Nb8 {[%clk 0:00:20.7]} 37. Bd3 {[%clk 0:01:16]} 37... Bc8 {[%clk 0:00:20.9]} 38.
hxg4 {[%clk 0:01:10.9]} 38... hxg4 {[%clk 0:00:20.8]} 39. Bc2 {[%clk 0:01:08.3]}
39... Bd7 {[%clk 0:00:21.1]} 40. Bb3 {[%clk 0:01:08.8]} 40... Ke7 {[%clk
0:00:17.1]} 41. Bc3 {[%clk 0:01:09.1]} 41... Bh6 {[%clk 0:00:17.1]} 42. Kf2
{[%clk 0:01:09.3]} 42... Bf8 {[%clk 0:00:17.4]} 43. Ke2 {[%clk 0:01:09.3]} 43...
Ke8 {[%clk 0:00:18]} 44. e4 {[%clk 0:01:08.5]} 44... Kf7 {[%clk 0:00:05.4]} 45.
exf5 {[%clk 0:01:08.5]} 45... exf5 {[%clk 0:00:06.3]} 46. Bc2 {[%clk 0:01:09]}
46... Kg6 {[%clk 0:00:06.4]} 47. e6 {[%clk 0:01:09]} 47... Be8 {[%clk
0:00:01.8]} 48. Nxf5 {[%clk 0:01:08.6]} 48... Kh5 {[%clk 0:00:01.6]} 49. Nd6
{[%clk 0:01:08]} 49... Bg6 {[%clk 0:00:01.2]} 50. f5 {[%clk 0:01:08.1]} 50...
Bh7 {[%clk 0:00:01.5]} 51. Ne8 {[%clk 0:01:04.9]} 51... Kg5 {[%clk 0:00:01.2]}
52. Bd2+ {[%clk 0:01:04.7]} 1-0

[Event "*** Titled Tuesday Blitz"]
[Site "Chess.com"]
[Date "2020.10.20"]
[Round "7"]
[White "medalja"]
[Black "shineatchess"]
[Result "1-0"]
[WhiteElo "2412"]
[BlackElo "2206"]
[TimeControl "180+1"]
[EndTime "11:19:40 PDT"]
[Termination "medalja won on time"]

1. d4 {[%clk 0:03:00.9]} 1... d5 {[%clk 0:02:58.7]} 2. c4 {[%clk 0:03:00.8]}
2... e6 {[%clk 0:02:59.2]} 3. Nf3 {[%clk 0:02:59.2]} 3... Nf6 {[%clk 0:02:59]}
4. g3 {[%clk 0:02:59.6]} 4... dxc4 {[%clk 0:02:59]} 5. Bg2 {[%clk 0:03:00]} 5...
Bd7 {[%clk 0:02:59.6]} 6. Ne5 {[%clk 0:02:59.6]} 6... Bc6 {[%clk 0:02:58.9]} 7.
Nxc6 {[%clk 0:02:58.8]} 7... Nxc6 {[%clk 0:02:59.6]} 8. O-O {[%clk 0:02:59]}
8... Qd7 {[%clk 0:02:52.8]} 9. Qa4 {[%clk 0:02:58.6]} 9... Nb4 {[%clk
0:02:46.9]} 10. Nc3 {[%clk 0:02:48.4]} 10... Qxa4 {[%clk 0:02:40.7]} 11. Nxa4
{[%clk 0:02:49.3]} 11... Nc2 {[%clk 0:02:31.3]} 12. Bxb7 {[%clk 0:02:46.5]}
12... Rb8 {[%clk 0:02:22.1]} 13. Bc6+ {[%clk 0:02:45.7]} 13... Kd8 {[%clk
0:02:21.4]} 14. Rb1 {[%clk 0:02:45.5]} 14... Na3 {[%clk 0:02:08.6]} 15. Ra1
{[%clk 0:02:34.1]} 15... Nc2 {[%clk 0:02:08.6]} 16. Rb1 {[%clk 0:02:34.1]} 16...
Na3 {[%clk 0:02:08.4]} 17. Bg5 {[%clk 0:02:04.3]} 17... Nxb1 {[%clk 0:02:07.4]}
18. Rxb1 {[%clk 0:02:05.2]} 18... h6 {[%clk 0:02:00.1]} 19. Bf4 {[%clk
0:02:02.4]} 19... Bd6 {[%clk 0:01:58.9]} 20. e4 {[%clk 0:01:59.3]} 20... Bxf4
{[%clk 0:01:57.6]} 21. gxf4 {[%clk 0:02:00.2]} 21... Ke7 {[%clk 0:01:50.8]} 22.
Rc1 {[%clk 0:02:00.2]} 22... Rb4 {[%clk 0:01:45.1]} 23. a3 {[%clk 0:01:59.5]}
23... Rxa4 {[%clk 0:01:31]} 24. Bxa4 {[%clk 0:01:58.6]} 24... Nxe4 {[%clk
0:01:31.5]} 25. Rxc4 {[%clk 0:01:57.2]} 25... Rc8 {[%clk 0:01:23.2]} 26. Bc6
{[%clk 0:01:49.7]} 26... Nd6 {[%clk 0:01:21.7]} 27. Ra4 {[%clk 0:01:49.8]} 27...
Nf5 {[%clk 0:01:14.1]} 28. d5 {[%clk 0:01:41.3]} 28... exd5 {[%clk 0:00:45.2]}
29. Bxd5 {[%clk 0:01:42.2]} 29... Rd8 {[%clk 0:00:45.3]} 30. Be4 {[%clk
0:01:31.3]} 30... Nh4 {[%clk 0:00:38.4]} 31. Kf1 {[%clk 0:01:30.4]} 31... Rd1+
{[%clk 0:00:35.4]} 32. Ke2 {[%clk 0:01:29.9]} 32... Rc1 {[%clk 0:00:23.4]} 33.
Rxa7 {[%clk 0:01:29.1]} 33... f5 {[%clk 0:00:21.1]} 34. Bd3 {[%clk 0:01:10.6]}
34... Ng6 {[%clk 0:00:17]} 35. Bxf5 {[%clk 0:01:09.7]} 35... Nxf4+ {[%clk
0:00:16.8]} 36. Kf3 {[%clk 0:01:09.9]} 36... Nd5 {[%clk 0:00:16.1]} 37. b4
{[%clk 0:01:08.7]} 37... Rc3+ {[%clk 0:00:14.5]} 38. Ke2 {[%clk 0:01:05.9]}
38... Nf4+ {[%clk 0:00:13.1]} 39. Kd2 {[%clk 0:01:06.3]} 39... Rc4 {[%clk
0:00:11.6]} 40. b5 {[%clk 0:01:04.3]} 40... Rc5 {[%clk 0:00:10.1]} 41. b6 {[%clk
0:01:04.4]} 41... Rxf5 {[%clk 0:00:07.6]} 42. Rxc7+ {[%clk 0:01:04.6]} 42... Kd8
{[%clk 0:00:07]} 43. Rxg7 {[%clk 0:01:04.7]} 43... Rb5 {[%clk 0:00:05.7]} 44. b7
{[%clk 0:01:04.9]} 44... Nd5 {[%clk 0:00:01.4]} 45. Rh7 {[%clk 0:01:03]} 1-0

[Event "*** Titled Tuesday Blitz"]
[Site "Chess.com"]
[Date "2020.10.20"]
[Round "7"]
[White "cukin84"]
[Black "dominikaf"]
[Result "1-0"]
[WhiteElo "2050"]
[BlackElo "2184"]
[TimeControl "180+1"]
[EndTime "11:19:43 PDT"]
[Termination "cukin84 won on time"]

1. e4 {[%clk 0:03:00.9]} 1... e5 {[%clk 0:02:59.9]} 2. Nf3 {[%clk 0:03:00.1]}
2... d6 {[%clk 0:02:59.8]} 3. Bc4 {[%clk 0:02:58.7]} 3... c5 {[%clk 0:02:59.7]}
4. c3 {[%clk 0:02:58]} 4... Nc6 {[%clk 0:02:59.9]} 5. d4 {[%clk 0:02:55.9]} 5...
cxd4 {[%clk 0:03:00.1]} 6. cxd4 {[%clk 0:02:55.7]} 6... exd4 {[%clk 0:03:01]} 7.
Nxd4 {[%clk 0:02:54.8]} 7... Nf6 {[%clk 0:03:01.4]} 8. Nc3 {[%clk 0:02:52.5]}
8... Be7 {[%clk 0:03:00.1]} 9. O-O {[%clk 0:02:51.6]} 9... O-O {[%clk
0:03:00.2]} 10. Nf5 {[%clk 0:02:38]} 10... Be6 {[%clk 0:02:46.4]} 11. Nxe7+
{[%clk 0:02:36]} 11... Qxe7 {[%clk 0:02:45.4]} 12. Nd5 {[%clk 0:02:35.2]} 12...
Bxd5 {[%clk 0:02:42.9]} 13. exd5 {[%clk 0:02:34.2]} 13... Ne5 {[%clk 0:02:42.6]}
14. Bb3 {[%clk 0:02:33.4]} 14... Rac8 {[%clk 0:02:33.6]} 15. Bg5 {[%clk
0:02:32.2]} 15... h6 {[%clk 0:02:31.1]} 16. Bh4 {[%clk 0:02:31.9]} 16... g5
{[%clk 0:02:31.2]} 17. Bg3 {[%clk 0:02:31.4]} 17... Ng6 {[%clk 0:02:16]} 18. Re1
{[%clk 0:02:28.5]} 18... Qd7 {[%clk 0:02:16.1]} 19. Qf3 {[%clk 0:02:19.7]} 19...
Kg7 {[%clk 0:02:12.7]} 20. Re3 {[%clk 0:02:16.5]} 20... Rfe8 {[%clk 0:02:11.2]}
21. h3 {[%clk 0:02:12.3]} 21... Rxe3 {[%clk 0:02:08.5]} 22. Qxe3 {[%clk
0:02:11.9]} 22... b6 {[%clk 0:01:57.9]} 23. Rc1 {[%clk 0:02:09.8]} 23... Rc5
{[%clk 0:01:24.5]} 24. Rc3 {[%clk 0:02:02.7]} 24... Nxd5 {[%clk 0:01:13]} 25.
Qd4+ {[%clk 0:02:02]} 25... Nf6 {[%clk 0:01:09.3]} 26. Qxd6 {[%clk 0:01:59]}
26... Qf5 {[%clk 0:00:47.9]} 27. Rf3 {[%clk 0:01:48.7]} 27... Qb1+ {[%clk
0:00:41.3]} 28. Kh2 {[%clk 0:01:48.3]} 28... Rf5 {[%clk 0:00:40]} 29. Rc3 {[%clk
0:01:23.2]} 29... Nf4 {[%clk 0:00:30]} 30. Rc7 {[%clk 0:01:19.1]} 30... N6h5
{[%clk 0:00:29.9]} 31. Qd4+ {[%clk 0:01:13.8]} 31... Kg6 {[%clk 0:00:25.6]} 32.
Bc2 {[%clk 0:01:10.9]} 32... Qf1 {[%clk 0:00:15.8]} 33. Bxf5+ {[%clk 0:01:07.2]}
33... Kxf5 {[%clk 0:00:16.1]} 34. Bxf4 {[%clk 0:01:06.8]} 34... Nxf4 {[%clk
0:00:15.5]} 35. Rxf7+ {[%clk 0:01:05]} 35... Kg6 {[%clk 0:00:15.4]} 36. Rxf4
{[%clk 0:01:04.4]} 36... gxf4 {[%clk 0:00:13.9]} 37. Qxf4 {[%clk 0:01:04.2]}
37... Qb1 {[%clk 0:00:05.8]} 38. b4 {[%clk 0:00:59.8]} 38... Qxa2 {[%clk
0:00:04.8]} 39. Qd6+ {[%clk 0:00:57.3]} 39... Kg7 {[%clk 0:00:02.5]} 40. Qe7+
{[%clk 0:00:55.4]} 40... Kg6 {[%clk 0:00:02.9]} 41. Qe8+ {[%clk 0:00:54.7]}
41... Kg7 {[%clk 0:00:03]} 42. Qe5+ {[%clk 0:00:51.3]} 42... Kg6 {[%clk
0:00:03.2]} 43. f4 {[%clk 0:00:51.2]} 43... Qc4 {[%clk 0:00:01.6]} 44. f5+
{[%clk 0:00:51]} 1-0

[Event "*** Titled Tuesday Blitz"]
[Site "Chess.com"]
[Date "2020.10.20"]
[Round "7"]
[White "Duhless"]
[Black "ArjunErigaisi2003"]
[Result "1/2-1/2"]
[WhiteElo "3026"]
[BlackElo "3049"]
[TimeControl "180+1"]
[EndTime "11:19:44 PDT"]
[Termination "Game drawn by repetition"]

1. d4 {[%clk 0:03:00.9]} 1... d5 {[%clk 0:02:58.2]} 2. c4 {[%clk 0:03:00.5]}
2... e6 {[%clk 0:02:58.4]} 3. Nf3 {[%clk 0:03:00.9]} 3... Nf6 {[%clk 0:02:57.9]}
4. g3 {[%clk 0:03:01.2]} 4... dxc4 {[%clk 0:02:57.8]} 5. Bg2 {[%clk 0:03:01.5]}
5... Bd7 {[%clk 0:02:57.4]} 6. Nbd2 {[%clk 0:02:54.4]} 6... Bc6 {[%clk 0:02:56]}
7. O-O {[%clk 0:02:52]} 7... Be7 {[%clk 0:02:51.2]} 8. Nxc4 {[%clk 0:02:49.3]}
8... O-O {[%clk 0:02:50.8]} 9. b3 {[%clk 0:02:49]} 9... Bd5 {[%clk 0:02:42.6]}
10. Bb2 {[%clk 0:02:47]} 10... c5 {[%clk 0:02:37.6]} 11. dxc5 {[%clk 0:02:40.9]}
11... Na6 {[%clk 0:02:36.6]} 12. Qc2 {[%clk 0:02:22]} 12... Be4 {[%clk
0:02:05.6]} 13. Qc3 {[%clk 0:02:20.9]} 13... Nxc5 {[%clk 0:01:58.9]} 14. Rfd1
{[%clk 0:02:20]} 14... Qc7 {[%clk 0:01:58.9]} 15. Qe5 {[%clk 0:02:07]} 15...
Qxe5 {[%clk 0:01:52.9]} 16. Nfxe5 {[%clk 0:02:06.6]} 16... Rfd8 {[%clk
0:01:43.1]} 17. Ba3 {[%clk 0:02:02.5]} 17... Kf8 {[%clk 0:01:31.5]} 18. Rac1
{[%clk 0:01:51.7]} 18... Bxg2 {[%clk 0:01:17.6]} 19. Kxg2 {[%clk 0:01:50.2]}
19... Ncd7 {[%clk 0:01:05.1]} 20. Nxd7+ {[%clk 0:01:05.2]} 20... Rxd7 {[%clk
0:01:06]} 21. Rxd7 {[%clk 0:00:58.3]} 21... Nxd7 {[%clk 0:01:06.9]} 22. Nd6
{[%clk 0:00:49.5]} 22... Nf6 {[%clk 0:01:06.4]} 23. Nb5 {[%clk 0:00:33.3]} 23...
Bxa3 {[%clk 0:00:44.2]} 24. Nxa3 {[%clk 0:00:34.2]} 24... Rd8 {[%clk 0:00:42.5]}
25. Rc7 {[%clk 0:00:33.8]} 25... Rd2 {[%clk 0:00:37.1]} 26. Nc4 {[%clk
0:00:28.8]} 26... Rxe2 {[%clk 0:00:32.6]} 27. Kf3 {[%clk 0:00:20.6]} 27... Rxa2
{[%clk 0:00:30.4]} 28. Rxb7 {[%clk 0:00:17.2]} 28... h5 {[%clk 0:00:25]} 29. h3
{[%clk 0:00:14.7]} 29... Nd5 {[%clk 0:00:18.3]} 30. Rb8+ {[%clk 0:00:06.2]}
30... Ke7 {[%clk 0:00:18]} 31. Rb7+ {[%clk 0:00:06.7]} 31... Kf8 {[%clk
0:00:16.2]} 32. Rb8+ {[%clk 0:00:06.8]} 32... Ke7 {[%clk 0:00:16.4]} 33. Rb7+
{[%clk 0:00:07.2]} 33... Kf8 {[%clk 0:00:14.7]} 1/2-1/2

[Event "*** Titled Tuesday Blitz"]
[Site "Chess.com"]
[Date "2020.10.20"]
[Round "7"]
[White "YIYUKI"]
[Black "stolencandy13"]
[Result "0-1"]
[WhiteElo "2324"]
[BlackElo "2470"]
[TimeControl "180+1"]
[EndTime "11:19:46 PDT"]
[Termination "stolencandy13 won by resignation"]

1. e4 {[%clk 0:02:45.8]} 1... c6 {[%clk 0:02:55.3]} 2. d4 {[%clk 0:02:44.7]}
2... d5 {[%clk 0:02:54.5]} 3. exd5 {[%clk 0:02:44.2]} 3... cxd5 {[%clk
0:02:52.8]} 4. c4 {[%clk 0:02:44.7]} 4... Nf6 {[%clk 0:02:52.2]} 5. Nc3 {[%clk
0:02:44.2]} 5... Nc6 {[%clk 0:02:50.3]} 6. Bg5 {[%clk 0:02:40.1]} 6... e6 {[%clk
0:02:43.8]} 7. Nf3 {[%clk 0:02:35.2]} 7... Bb4 {[%clk 0:02:40.1]} 8. cxd5 {[%clk
0:02:31.2]} 8... Qxd5 {[%clk 0:02:37.7]} 9. Bd3 {[%clk 0:02:25.2]} 9... Ne4
{[%clk 0:02:21.2]} 10. Bxe4 {[%clk 0:02:17.9]} 10... Qxe4+ {[%clk 0:02:20.3]}
11. Be3 {[%clk 0:02:15.8]} 11... O-O {[%clk 0:02:13.8]} 12. O-O {[%clk
0:02:15.6]} 12... Qg4 {[%clk 0:02:09.7]} 13. h3 {[%clk 0:02:13.3]} 13... Qh5
{[%clk 0:02:08.3]} 14. d5 {[%clk 0:01:52.8]} 14... Bxc3 {[%clk 0:01:51.6]} 15.
dxc6 {[%clk 0:01:51.8]} 15... Bf6 {[%clk 0:01:41.4]} 16. c7 {[%clk 0:01:46.5]}
16... b6 {[%clk 0:01:32.6]} 17. Bd4 {[%clk 0:01:17.7]} 17... Be7 {[%clk
0:01:20.3]} 18. Rc1 {[%clk 0:01:13.6]} 18... Bb7 {[%clk 0:01:15.8]} 19. Ne5
{[%clk 0:01:13.3]} 19... Qf5 {[%clk 0:00:58.4]} 20. Qg4 {[%clk 0:00:51]} 20...
Qxg4 {[%clk 0:00:54]} 21. hxg4 {[%clk 0:00:50.1]} 21... Rfc8 {[%clk 0:00:52.1]}
22. Rc2 {[%clk 0:00:41.3]} 22... Bd6 {[%clk 0:00:42.6]} 23. Rfc1 {[%clk
0:00:40.1]} 23... f6 {[%clk 0:00:39.9]} 24. Nd7 {[%clk 0:00:33.4]} 24... Be4
{[%clk 0:00:33.9]} 25. Rc3 {[%clk 0:00:32.2]} 25... Bf4 {[%clk 0:00:31.2]} 26.
Re1 {[%clk 0:00:30.1]} 26... Bd5 {[%clk 0:00:29.7]} 27. Bxb6 {[%clk 0:00:23.7]}
27... axb6 {[%clk 0:00:26.8]} 28. Nxb6 {[%clk 0:00:23.5]} 28... Bd2 {[%clk
0:00:20.1]} 29. Nxc8 {[%clk 0:00:22.8]} 29... Rxc8 {[%clk 0:00:19]} 30. Rb3
{[%clk 0:00:17.9]} 30... Rxc7 {[%clk 0:00:14.7]} 31. Rb8+ {[%clk 0:00:17.1]}
31... Kf7 {[%clk 0:00:14.4]} 32. Rd1 {[%clk 0:00:17.4]} 32... Rc1 {[%clk
0:00:13.9]} 33. Rxc1 {[%clk 0:00:17]} 33... Bxc1 {[%clk 0:00:14.8]} 34. b4
{[%clk 0:00:17.4]} 34... Bxa2 {[%clk 0:00:14]} 35. b5 {[%clk 0:00:17.3]} 35...
Bf4 {[%clk 0:00:14.1]} 36. b6 {[%clk 0:00:17.1]} 36... Bxb8 {[%clk 0:00:13.4]}
37. b7 {[%clk 0:00:16.8]} 37... Bd5 {[%clk 0:00:13.5]} 0-1

[Event "*** Titled Tuesday Blitz"]
[Site "Chess.com"]
[Date "2020.10.20"]
[Round "7"]
[White "anon569"]
[Black "MashaFromRussia"]
[Result "0-1"]
[WhiteElo "2261"]
[BlackElo "2406"]
[TimeControl "180+1"]
[EndTime "11:19:46 PDT"]
[Termination "MashaFromRussia won by resignation"]

1. e4 {[%clk 0:03:00.9]} 1... c5 {[%clk 0:02:55]} 2. Nf3 {[%clk 0:02:59.3]} 2...
Nc6 {[%clk 0:02:54.1]} 3. d4 {[%clk 0:02:57.1]} 3... cxd4 {[%clk 0:02:55]} 4.
Nxd4 {[%clk 0:02:57.6]} 4... Nf6 {[%clk 0:02:54.3]} 5. Nc3 {[%clk 0:02:57.7]}
5... e5 {[%clk 0:02:53.2]} 6. Ndb5 {[%clk 0:02:57.1]} 6... d6 {[%clk 0:02:52.9]}
7. Bg5 {[%clk 0:02:57]} 7... a6 {[%clk 0:02:52.7]} 8. Na3 {[%clk 0:02:57.4]}
8... b5 {[%clk 0:02:53.1]} 9. Nd5 {[%clk 0:02:57.8]} 9... Be7 {[%clk 0:02:53.2]}
10. Bxf6 {[%clk 0:02:58.4]} 10... Bxf6 {[%clk 0:02:54.1]} 11. c3 {[%clk
0:02:58.9]} 11... O-O {[%clk 0:02:53.9]} 12. Nc2 {[%clk 0:02:59.4]} 12... Bg5
{[%clk 0:02:53.9]} 13. a4 {[%clk 0:02:57.1]} 13... bxa4 {[%clk 0:02:54.8]} 14.
Rxa4 {[%clk 0:02:57.7]} 14... a5 {[%clk 0:02:54.3]} 15. Bc4 {[%clk 0:02:58.2]}
15... Rb8 {[%clk 0:02:53.3]} 16. b3 {[%clk 0:02:58.1]} 16... Kh8 {[%clk
0:02:53.2]} 17. Nce3 {[%clk 0:02:51.9]} 17... g6 {[%clk 0:02:52.4]} 18. O-O
{[%clk 0:02:48]} 18... f5 {[%clk 0:02:51.6]} 19. exf5 {[%clk 0:02:44.5]} 19...
gxf5 {[%clk 0:02:52.5]} 20. f4 {[%clk 0:02:44.8]} 20... exf4 {[%clk 0:02:51.9]}
21. Nxf4 {[%clk 0:02:42.5]} 21... Qb6 {[%clk 0:02:51.2]} 22. Qf3 {[%clk
0:02:12.6]} 22... Re8 {[%clk 0:02:36.9]} 23. Re1 {[%clk 0:01:59.3]} 23... Ne5
{[%clk 0:02:33.1]} 24. Qh5 {[%clk 0:01:34.6]} 24... Nf7 {[%clk 0:02:00.5]} 25.
Qxf7 {[%clk 0:01:25.5]} 25... Ba6 {[%clk 0:01:57.8]} 26. Nd5 {[%clk 0:00:34.1]}
26... Qc5 {[%clk 0:01:43.2]} 27. Bxa6 {[%clk 0:00:29.2]} 27... Bxe3+ {[%clk
0:01:41.7]} 28. Kh1 {[%clk 0:00:29.3]} 28... Rf8 {[%clk 0:01:34.1]} 29. Qe6
{[%clk 0:00:11.6]} 29... Bd2 {[%clk 0:01:32.8]} 30. Rd1 {[%clk 0:00:08.7]} 30...
Rxb3 {[%clk 0:01:31.4]} 31. Rh4 {[%clk 0:00:04.3]} 31... Bg5 {[%clk 0:01:03.8]}
32. Rh5 {[%clk 0:00:02.7]} 32... Rg8 {[%clk 0:00:45.3]} 33. Rxg5 {[%clk
0:00:02.4]} 33... Rxg5 {[%clk 0:00:44.5]} 34. Qf6+ {[%clk 0:00:02.8]} 34... Rg7
{[%clk 0:00:44.9]} 35. Qf8+ {[%clk 0:00:03.2]} 35... Rg8 {[%clk 0:00:45]} 36.
Qf6+ {[%clk 0:00:03.8]} 36... Rg7 {[%clk 0:00:45.5]} 37. Re1 {[%clk 0:00:04.1]}
37... Rb8 {[%clk 0:00:44.6]} 38. Re7 {[%clk 0:00:04]} 38... Rb1+ {[%clk
0:00:44.1]} 0-1

[Event "*** Titled Tuesday Blitz"]
[Site "Chess.com"]
[Date "2020.10.20"]
[Round "7"]
[White "ChelsieMonica"]
[Black "szefru"]
[Result "1-0"]
[WhiteElo "2362"]
[BlackElo "2239"]
[TimeControl "180+1"]
[EndTime "11:19:46 PDT"]
[Termination "ChelsieMonica won by checkmate"]

1. e4 {[%clk 0:03:00.9]} 1... Nf6 {[%clk 0:02:59.4]} 2. e5 {[%clk 0:03:00.5]}
2... Nd5 {[%clk 0:02:59.4]} 3. Nf3 {[%clk 0:03:01.4]} 3... d6 {[%clk 0:02:59.5]}
4. d4 {[%clk 0:03:01.7]} 4... g6 {[%clk 0:02:58.4]} 5. Bb5+ {[%clk 0:03:00.6]}
5... c6 {[%clk 0:02:58.1]} 6. Be2 {[%clk 0:03:01.3]} 6... Bg7 {[%clk 0:02:57.3]}
7. O-O {[%clk 0:03:01.2]} 7... O-O {[%clk 0:02:57.2]} 8. h3 {[%clk 0:02:56.4]}
8... dxe5 {[%clk 0:02:53.6]} 9. dxe5 {[%clk 0:02:56.6]} 9... Nd7 {[%clk
0:02:53.6]} 10. c4 {[%clk 0:02:52.1]} 10... N5b6 {[%clk 0:02:53.6]} 11. Bf4
{[%clk 0:02:52.1]} 11... Nc5 {[%clk 0:02:49.9]} 12. Nc3 {[%clk 0:02:48.6]} 12...
Be6 {[%clk 0:02:49.4]} 13. b3 {[%clk 0:02:46.8]} 13... h6 {[%clk 0:02:39.3]} 14.
Nd4 {[%clk 0:02:14.7]} 14... a5 {[%clk 0:02:12.4]} 15. Rb1 {[%clk 0:02:00.5]}
15... Nbd7 {[%clk 0:02:10.8]} 16. Nf3 {[%clk 0:01:55.1]} 16... Bf5 {[%clk
0:02:04.8]} 17. Rb2 {[%clk 0:01:53.9]} 17... Ne4 {[%clk 0:01:46.9]} 18. Nxe4
{[%clk 0:01:51.3]} 18... Bxe4 {[%clk 0:01:47.8]} 19. Qd4 {[%clk 0:01:50.4]}
19... Bxf3 {[%clk 0:01:37.7]} 20. Bxf3 {[%clk 0:01:49.8]} 20... Qc8 {[%clk
0:01:33.1]} 21. Re2 {[%clk 0:01:46.8]} 21... e6 {[%clk 0:01:32]} 22. Rd2 {[%clk
0:01:45.9]} 22... Rd8 {[%clk 0:01:08.9]} 23. Rfd1 {[%clk 0:01:45.5]} 23... Qc7
{[%clk 0:01:09.1]} 24. Qd6 {[%clk 0:01:43.3]} 24... Qxd6 {[%clk 0:01:04.1]} 25.
Rxd6 {[%clk 0:01:44.2]} 25... a4 {[%clk 0:00:50.6]} 26. Rxd7 {[%clk 0:01:43.4]}
26... Rdb8 {[%clk 0:00:47.4]} 27. b4 {[%clk 0:01:42.8]} 27... Bf8 {[%clk
0:00:45.4]} 28. c5 {[%clk 0:01:43.1]} 28... a3 {[%clk 0:00:30.9]} 29. R1d4
{[%clk 0:01:33.1]} 29... Ra4 {[%clk 0:00:30.3]} 30. Bd1 {[%clk 0:01:32.7]} 30...
Raa8 {[%clk 0:00:29.4]} 31. Bb3 {[%clk 0:01:29.6]} 31... b6 {[%clk 0:00:27.6]}
32. cxb6 {[%clk 0:01:28.4]} 32... Rxb6 {[%clk 0:00:28.3]} 33. Bd2 {[%clk
0:01:27.8]} 33... Rab8 {[%clk 0:00:27.9]} 34. Rc7 {[%clk 0:01:21.3]} 34... c5
{[%clk 0:00:19.8]} 35. bxc5 {[%clk 0:01:05.4]} 35... Rb5 {[%clk 0:00:17.7]} 36.
Rdd7 {[%clk 0:00:59.3]} 36... Bxc5 {[%clk 0:00:15.7]} 37. Rxf7 {[%clk
0:00:58.9]} 37... Bd4 {[%clk 0:00:13.3]} 38. Rg7+ {[%clk 0:00:53]} 38... Kf8
{[%clk 0:00:12.9]} 39. Rcf7+ {[%clk 0:00:48.7]} 39... Ke8 {[%clk 0:00:12.9]} 40.
Re7+ {[%clk 0:00:48.9]} 40... Kf8 {[%clk 0:00:13.1]} 41. Bxh6 {[%clk 0:00:49]}
41... Bxe5 {[%clk 0:00:11.8]} 42. Rh7+ {[%clk 0:00:45.7]} 42... Kg8 {[%clk
0:00:11.9]} 43. Bxe6# {[%clk 0:00:45.7]} 1-0